bitfinex-derivatives/quotes_ETHF0:USTF0_20240920
["timestamp","ask_amount","ask_price","bid_price","bid_amount"]
[1726798535866,0.40698,2456.5,2456.2,1.21722]
[1726798536263,0.407,2456.4,2456.2,0.8102]
[1726798536469,3.2078,2456.5,2456.2,0.8102]
[1726798536665,0.7953,2456.4,2456.2,0.8102]
[1726798537372,0.3883,2456.4,2456.2,0.8102]
[1726798537566,0.7953,2456.4,2456.2,0.8102]
[1726798537869,0.3883,2456.4,2456.2,1.21723]
[1726798538269,0.3883,2456.4,2456.3,0.40701]
[1726798538472,0.3883,2456.4,2456.2,5.28842]
[1726798539267,0.3883,2456.4,2456.2,4.8814]
[1726798539472,3.2078,2456.5,2456.2,4.8814]
[1726798539672,3.2078,2456.5,2456.4,0.40699]
[1726798540172,3.61473,2456.8,2456.5,0.40696]
[1726798540372,3.61473,2456.8,2456.6,0.4188]
[1726798540565,3.61473,2456.8,2456.6,0.821]
[1726798542274,0.40694,2456.7,2456.6,0.821]
[1726798542675,0.40694,2456.7,2456.6,0.4022]
[1726798543776,3.61473,2456.8,2456.6,0.4022]
[1726798546275,3.2078,2456.8,2456.6,0.80916]
[1726798546684,3.61473,2456.8,2456.6,0.4022]
[1726798549278,0.40694,2456.7,2456.6,0.4022]
[1726798549585,0.40698,2456.5,2456.2,0.40701]
[1726798549883,3.61478,2456.5,2456.3,0.4208]
[1726798551881,3.2078,2456.5,2456.3,4.89901]
[1726798553682,3.61478,2456.5,2456.3,4.89901]
[1726798554379,3.2078,2456.5,2456.3,4.492]
[1726798554591,3.2078,2456.5,2456.4,0.40699]
[1726798555189,3.2078,2456.5,2456.4,4.47819]
[1726798555684,3.2078,2456.5,2456.4,0.40699]
[1726798555881,3.2078,2456.5,2456.3,3.6008]
[1726798556092,3.61478,2456.5,2456.3,0.4208]
[1726798556893,0.40699,2456.4,2456.3,0.4208]
[1726798557078,3.61479,2456.5,2456.3,0.4208]
[1726798557285,3.2078,2456.5,2456.3,0.4208]
[1726798557483,0.40699,2456.4,2456.3,0.4208]
[1726798557692,0.79889,2456.4,2456.3,0.4208]
[1726798559080,0.3919,2456.4,2456.3,0.4208]
[1726798559287,3.61479,2456.5,2456.3,0.4208]
[1726798560192,3.2078,2456.5,2456.3,7.672]
[1726798560881,3.2078,2456.5,2456.4,0.40699]
[1726798561286,3.2078,2456.5,2456.4,4.47819]
[1726798563189,0.40693,2456.8,2456.6,0.40696]
[1726798563394,0.40693,2456.8,2456.7,0.8052]
[1726798563693,0.40693,2456.8,2456.7,1.2093]
[1726798565094,4.43382,2456.9,2456.7,1.2093]
[1726798565487,0.40693,2456.8,2456.7,1.2093]
[1726798565690,4.43382,2456.9,2456.7,1.2093]
[1726798566099,0.40693,2456.8,2456.7,1.2093]
[1726798567092,0.40693,2456.8,2456.6,0.40696]
[1726798567694,0.40693,2456.8,2456.4,1.2376]
[1726798568196,4.0269,2456.9,2456.4,1.2376]
[1726798568387,0.40695,2456.7,2456.5,0.40697]
[1726798568583,3.2078,2456.6,2456.4,1.64458]
[1726798568905,3.61477,2456.6,2456.4,1.2376]
[1726798570292,0.40698,2456.5,2456.4,1.2376]
[1726798570499,0.40698,2456.5,2456.1,4.37353]
[1726798570500,0.81508,2456.5,2456.1,4.37353]
[1726798570797,1.24028,2456.5,2456.2,0.4045]
[1726798571188,0.8333,2456.5,2456.2,0.81152]
[1726798572588,3.61477,2456.6,2456.3,0.40701]
[1726798573596,3.61477,2456.6,2456.3,3.18]
[1726798575085,3.2078,2456.6,2456.3,3.587]
[1726798575602,3.61477,2456.6,2456.3,3.587]
[1726798575899,3.2078,2456.6,2456.3,3.18]
[1726798576093,3.2078,2456.6,2456.2,0.4045]
[1726798576297,0.40701,2456.3,2456.2,0.4045]
[1726798576990,0.40703,2456.2,2455.8,1.06062892]
[1726798577190,3.2078,2456.0,2455.9,0.3905]
[1726798580790,3.61486,2456.0,2455.9,0.3905]
[1726798581295,3.61486,2456.0,2455.8,0.8005]
[1726798581600,0.40708,2455.9,2455.7,0.395]
[1726798581795,4.03747,2456.0,2455.7,0.8021]
[1726798582890,3.2078,2456.0,2455.8,0.40709]
[1726798583094,3.2078,2456.0,2455.9,0.7894]
[1726798583395,3.2078,2456.0,2455.9,1.19648]
[1726798583596,3.2078,2456.0,2455.9,0.7894]
[1726798584499,3.61486,2456.0,2455.9,0.7894]
[1726798587107,3.2078,2456.0,2455.9,0.7894]
[1726798587303,3.2078,2456.0,2455.9,1.19648]
[1726798588707,3.2078,2456.0,2455.9,8.44848]
[1726798590109,0.4226,2456.3,2456.2,0.40703]
[1726798590110,3.2078,2456.3,2456.2,0.40703]
[1726798590609,3.2078,2456.3,2456.1,0.40704]
[1726798590811,3.61482,2456.3,2456.2,0.4007]
[1726798591500,0.40704,2456.2,2456.0,0.40705]
[1726798591702,0.79634,2456.2,2456.0,0.80235]
[1726798592306,0.40704,2456.1,2456.0,0.3953]
[1726798592507,1.18433,2456.2,2456.0,0.80235]
[1726798593415,0.79633,2456.2,2456.0,3.98235]
[1726798597725,0.79633,2456.2,2456.1,0.40704]
[1726798599034,3.2078,2456.3,2456.2,0.40703]
[1726798599236,3.27532852,2456.3,2456.2,0.40703]
[1726798600425,3.27532852,2456.3,2456.1,0.40703]
[1726798600625,3.61482,2456.3,2456.1,0.40703]
[1726798600930,0.40703,2456.2,2456.1,0.40703]
[1726798601430,0.47456173,2456.2,2456.1,0.40703]
[1726798601930,3.61482,2456.3,2456.1,0.40703]
[1726798602531,3.61482,2456.3,2456.2,0.40703]
[1726798602532,3.61481,2456.3,2456.2,0.40703]
[1726798602729,3.68233979,2456.3,2456.1,0.40703]
[1726798602919,3.61481,2456.3,2456.1,0.40704]
[1726798603931,0.47456086,2456.2,2456.0,0.80235]
[1726798604130,0.40703,2456.2,2456.0,0.80235]
[1726798604336,0.3998,2456.1,2456.0,0.80235]
[1726798604626,0.3998,2456.1,2456.0,0.3953]
[1726798604828,0.40706,2456.0,2455.7,0.4071]
[1726798605035,4.43466,2456.0,2455.7,0.40711]
[1726798606522,4.43466,2456.0,2455.8,0.40709]
[1726798607637,4.43466,2456.0,2455.7,0.4071]
[1726798607837,4.43466,2456.0,2455.8,0.40709]
[1726798608036,1.22686,2456.0,2455.8,0.40709]
[1726798609233,1.22686,2456.0,2455.7,0.4071]
[1726798610638,1.22686,2456.0,2455.5,5.01212892]
[1726798610933,1.22686,2456.0,2455.8,0.40709]
[1726798611133,1.22686,2456.0,2455.9,0.3921]
[1726798617140,0.3998,2456.1,2455.9,0.79917]
[1726798617141,0.80685,2456.1,2455.9,0.79917]
[1726798617538,0.3998,2456.1,2456.0,0.40706]
[1726798617838,0.3998,2456.1,2456.0,0.79416]
[1726798618238,0.80684,2456.1,2456.0,0.3871]
[1726798620448,0.40708,2455.9,2455.7,0.4071]
[1726798620647,3.61487,2456.0,2455.7,0.4071]
[1726798621146,3.61487,2456.0,2455.8,0.412]
[1726798621451,3.61487,2456.0,2455.8,0.81909]
[1726798622042,3.2078,2456.0,2455.8,0.81909]
[1726798622242,0.79204,2456.2,2456.0,0.40705]
[1726798622545,0.79204,2456.2,2456.1,0.3848]
[1726798622744,3.2078,2456.3,2456.2,0.40703]
[1726798623051,3.2078,2456.3,2456.2,1.87703]
[1726798623248,3.2078,2456.3,2456.2,0.40703]
[1726798624250,3.2078,2456.3,2456.1,1.8548]
[1726798624442,3.2078,2456.3,2456.2,0.40703]
[1726798624838,3.2078,2456.3,2456.1,2.26183]
[1726798625040,3.2078,2456.3,2456.2,0.40703]
[1726798625851,3.6339,2456.3,2456.2,0.40703]
[1726798627150,3.2078,2456.3,2456.2,0.40703]
[1726798628152,3.2078,2456.3,2456.1,3.97183]
[1726798628351,3.2078,2456.3,2456.2,0.40703]
[1726798628554,3.61481,2456.3,2456.1,0.3848]
[1726798628752,3.61481,2456.3,2456.1,0.79184]
[1726798629256,3.2078,2456.3,2456.1,0.79183]
[1726798629954,0.40703,2456.2,2456.1,0.3848]
[1726798630256,0.40706,2456.0,2455.7,0.4071]
[1726798630453,3.2078,2455.9,2455.8,0.3953]
[1726798634655,3.2078,2455.9,2455.8,0.80239]
[1726798635164,0.40705,2456.1,2455.8,0.80239]
[1726798635661,0.40706,2456.0,2455.8,0.80239]
[1726798635859,0.40705,2456.1,2455.8,0.3953]
[1726798636055,0.40707,2456.0,2455.8,0.80239]
[1726798637063,0.40705,2456.1,2455.8,0.80239]
[1726798637367,0.40707,2456.0,2455.8,0.3953]
[1726798637864,0.40707,2456.0,2455.8,0.80239]
[1726798639060,0.40707,2456.0,2455.8,0.3953]
[1726798639969,0.40707,2456.0,2455.8,0.80239]
[1726798640359,0.40707,2456.0,2455.8,0.3953]
[1726798641664,4.0392,2456.2,2455.8,0.80239]
[1726798642565,0.40704,2456.1,2455.8,0.80239]
[1726798643367,3.2078,2456.2,2455.8,0.3953]
[1726798643964,3.2078,2456.2,2456.0,0.40705]
[1726798644271,3.2078,2456.2,2456.1,0.8081]
[1726798644569,3.2078,2456.2,2456.1,1.2327]
[1726798645872,3.2078,2456.2,2456.1,1.63974]
[1726798646076,3.2078,2456.2,2456.1,3.10974]
[1726798647067,3.2078,2456.2,2456.1,7.18094]
[1726798651669,3.61483,2456.2,2456.0,1.46767892]
[1726798651871,3.61483,2456.2,2456.0,0.40705]
[1726798652572,3.61483,2456.2,2456.1,0.81544]
[1726798652573,3.2078,2456.2,2456.1,0.81544]
[1726798652871,3.2078,2456.2,2456.1,2.28544]
[1726798658575,3.61483,2456.2,2456.0,0.40704]
[1726798658878,0.4246,2456.1,2456.0,0.40704]
[1726798659583,0.4246,2456.1,2455.9,1.8918]
[1726798659584,3.2078,2456.2,2456.1,0.40704]
[1726798660181,3.61483,2456.2,2456.0,0.40705]
[1726798663282,3.2078,2456.2,2456.0,0.40705]
[1726798663672,3.2078,2456.2,2456.1,0.40704]
[1726798664278,3.2078,2456.2,2456.0,1.06062892]
[1726798664279,3.2078,2456.2,2456.0,1.46767892]
[1726798664482,3.2078,2456.2,2456.1,0.40704]
[1726798665279,3.2078,2456.2,2456.1,1.87704]
[1726798667089,3.2078,2456.2,2456.1,2.93766892]
[1726798667287,3.2078,2456.2,2456.1,1.87704]
[1726798667687,3.2078,2456.2,2456.1,0.40704]
[1726798667880,3.61483,2456.2,2456.0,1.06062892]
[1726798668081,1.23044,2456.1,2456.0,1.06062892]
[1726798668280,0.40707,2456.0,2455.8,0.3881]
[1726798668486,0.79627,2456.0,2455.8,0.79518]
[1726798669388,0.3892,2456.0,2455.9,0.40708]
[1726798671381,0.3892,2456.0,2455.9,1.87708]
[1726798673285,3.2078,2456.2,2456.1,0.40704]
[1726798675294,3.2078,2456.2,2456.1,1.46766892]
[1726798678188,3.2078,2456.2,2456.1,1.06062892]
[1726798678394,7.279,2456.2,2456.0,1.06062892]
[1726798678596,0.40704,2456.1,2456.0,1.06062892]
[1726798679787,3.61484,2456.2,2456.0,1.06062892]
[1726798680599,0.40704,2456.1,2456.0,1.06062892]
[1726798683493,0.40704,2456.1,2455.9,1.46768892]
[1726798684399,0.81666,2456.0,2455.8,1.85762892]
[1726798684700,0.3988,2455.9,2455.8,1.85762892]
[1726798684901,0.3988,2455.9,2455.7,1.06062892]
[1726798685091,0.3988,2455.9,2455.8,0.40709]
[1726798685292,0.3988,2455.9,2455.7,1.46912892]
[1726798685495,0.3988,2455.9,2455.7,1.87622892]
[1726798685698,0.3988,2455.9,2455.8,0.40709]
[1726798686488,0.3988,2455.9,2455.7,1.87622892]
[1726798687099,0.3988,2455.9,2455.8,0.40709]
[1726798687800,0.3988,2455.9,2455.7,1.87622892]
[1726798688695,0.3988,2455.9,2455.8,0.40709]
[1726798689408,0.3988,2455.9,2455.7,1.87622892]
[1726798690493,0.3988,2455.9,2455.7,0.8156]
[1726798691700,0.80588,2455.9,2455.7,0.8156]
[1726798694301,0.40709,2455.8,2455.7,0.4085]
[1726798694504,3.6066,2455.9,2455.6,0.4006]
[1726798694704,0.83211,2455.7,2455.6,0.4006]
[1726798695106,0.83211,2455.7,2455.5,1.19574]
[1726798695304,0.83211,2455.7,2455.5,0.79314]
[1726798696803,0.83211,2455.7,2455.5,0.386]
[1726798697106,0.4071,2455.8,2455.5,2.26313]
[1726798697407,0.4071,2455.8,2455.6,0.40712]
[1726798697601,0.4071,2455.8,2455.6,2.26642]
[1726798697906,3.9946,2455.9,2455.6,2.26642]
[1726798697907,0.40711,2455.7,2455.6,1.8593]
[1726798699100,2.567,2455.8,2455.6,1.8593]
[1726798699303,0.40702,2456.3,2455.9,0.40708]
[1726798699501,0.40702,2456.3,2456.0,0.81955]
[1726798699705,5.07,2456.4,2456.0,0.4125]
[1726798699918,0.81193,2456.2,2456.0,0.4125]
[1726798700219,0.3881,2456.1,2456.0,0.4125]
[1726798700516,0.3881,2456.1,2455.7,3.0672471]
[1726798700517,0.40706,2456.0,2455.7,1.4719314]
[1726798700707,0.82976,2456.0,2455.8,0.4125]
[1726798701214,0.4227,2456.0,2455.8,0.4125]
[1726798701403,0.82977,2456.0,2455.8,0.4125]
[1726798701713,0.4175,2455.9,2455.8,0.4125]
[1726798701912,0.4175,2455.9,2455.6,1.0648314]
[1726798701913,1.8875,2455.9,2455.6,1.0648314]
[1726798702209,3.61489,2455.8,2455.5,1.87714]
[1726798702415,0.3933,2455.7,2455.5,2.29004]
[1726798702711,0.3933,2455.7,2455.6,0.40713]
[1726798703303,0.82459,2455.9,2455.6,0.40713]
[1726798703500,0.82459,2455.9,2455.6,1.4719614]
[1726798703501,1.21789,2455.9,2455.6,1.4719614]
[1726798703709,0.40709,2455.8,2455.7,0.4209]
[1726798703911,0.3933,2455.9,2455.7,0.828]
[1726798704509,1.8633,2455.9,2455.6,1.0648314]
[1726798704815,0.8094,2455.8,2455.5,2.2963614]
[1726798705513,0.8094,2455.8,2455.5,1.23153]
[1726798706815,0.4023,2455.8,2455.5,1.23153]
[1726798707012,0.4023,2455.8,2455.5,0.8244]
[1726798707314,5.47819,2455.9,2455.6,0.40712]
[1726798707315,4.00819,2455.9,2455.6,0.40712]
[1726798707516,3.6011,2455.9,2455.6,0.40712]
[1726798708417,4.00818,2455.9,2455.6,0.40712]
[1726798708617,4.00818,2455.9,2455.6,1.4719514]
[1726798709715,5.0711,2455.9,2455.5,0.4115]
[1726798709926,0.8113,2455.8,2455.5,0.81864]
[1726798710923,0.4042,2455.8,2455.6,0.40712]
[1726798712016,0.8113,2455.8,2455.5,0.81864]
[1726798717029,2.2813,2455.8,2455.5,0.81864]
[1726798717220,2.2813,2455.8,2455.0,2.0828714]
[1726798717221,1.47,2455.6,2455.0,3.2078]
[1726798717422,1.87721,2455.1,2455.0,0.3898]
[1726798717618,1.47,2455.1,2455.0,0.3898]
[1726798718028,2.275,2455.1,2455.0,0.3898]
[1726798718819,2.275,2455.1,2454.6,1.47]
[1726798719018,2.68222,2455.1,2454.7,1.19867]
[1726798719419,0.40724,2455.0,2454.7,0.7914]
[1726798719826,1.47,2454.9,2454.7,0.7914]
[1726798722229,1.87726,2454.8,2454.7,0.3898]
[1726798722430,2.28876,2454.8,2454.4,0.80311]
[1726798722629,1.47,2454.6,2454.4,0.8191]
[1726798722930,1.47,2454.6,2454.4,1.22641]
[1726798723831,1.8859,2454.7,2454.5,0.40731]
[1726798724328,1.8859,2454.7,2454.4,0.8191]
[1726798724526,2.2941,2454.7,2454.4,0.8191]
[1726798725032,2.2941,2454.7,2454.4,1.22642]
[1726798727326,0.4073,2454.6,2454.4,0.4233]
[1726798727627,1.47,2454.5,2454.1,0.416]
[1726798727824,0.40734,2454.3,2454.2,0.3849]
[1726798728018,1.47,2454.4,2454.2,0.3849]
[1726798728222,0.4135,2454.3,2454.2,0.79225]
[1726798728821,3.571,2454.6,2454.4,0.40732]
[1726798729227,3.9845,2454.6,2454.5,0.4102]
[1726798729626,8.0589,2454.6,2454.5,0.4102]
[1726798730028,8.46619,2454.6,2454.5,0.4102]
[1726798730337,8.46619,2454.6,2454.3,0.81753]
[1726798730524,1.47,2454.4,2454.3,0.81753]
[1726798732926,1.47,2454.4,2454.3,0.4102]
[1726798734434,1.47,2454.4,2454.1,0.82337]
[1726798734435,1.87733,2454.4,2454.1,0.82337]
[1726798734734,2.30235,2454.3,2454.0,0.4059]
[1726798734938,1.47,2454.1,2454.0,0.4059]
[1726798735434,1.47,2454.1,2454.0,0.81329]
[1726798735830,1.47,2454.1,2454.0,0.4059]
[1726798736538,1.8905,2454.2,2454.1,0.40737]
[1726798741046,5.034,2454.4,2454.1,0.40737]
[1726798741241,9.06503,2454.4,2454.1,0.40737]
[1726798741544,9.06503,2454.4,2454.0,1.23808]
[1726798741735,5.0937,2454.4,2454.1,0.40737]
[1726798742641,5.0937,2454.4,2454.0,0.8307]
[1726798742840,5.0937,2454.4,2454.0,1.2164]
[1726798743039,3.2078,2454.4,2454.3,0.40734]
[1726798746045,1.47,2454.4,2454.2,0.40734]
[1726798746239,1.8553,2454.4,2454.3,0.40734]
[1726798753145,2.26263,2454.4,2454.1,0.40737]
[1726798753455,1.47,2454.2,2454.1,0.40737]
[1726798755343,0.3853,2454.4,2454.2,0.40735]
[1726798755344,1.47,2454.3,2454.2,0.40735]
[1726798755841,0.3853,2454.4,2454.3,0.40734]
[1726798756848,3.564,2455.0,2454.3,4.0744]
[1726798757052,3.564,2455.0,2454.8,0.40726]
[1726798757053,3.2078,2454.9,2454.8,0.40726]
[1726798757257,1.47,2455.0,2454.8,0.40726]
[1726798757448,5.5436,2455.0,2454.8,0.40726]
[1726798757951,1.47,2455.0,2454.8,0.40726]
[1726798760059,4.7813,2455.1,2454.8,0.40726]
[1726798760260,1.47,2455.0,2454.8,0.40726]
[1726798762654,1.47,2455.0,2454.5,1.8725]
[1726798762655,1.47,2455.0,2454.9,0.40724]
[1726798764167,2.2957,2455.1,2455.0,0.40723]
[1726798764359,1.8708,2455.1,2455.0,0.40723]
[1726798771568,2.2679,2455.1,2455.0,0.40723]
[1726798772064,2.2679,2455.1,2454.9,0.40723]
[1726798772361,1.47,2455.0,2454.9,0.40723]
[1726798772568,2.2679,2455.1,2455.0,0.40723]
[1726798772764,1.8708,2455.1,2455.0,0.40723]
[1726798774458,1.8708,2455.1,2454.9,0.79643]
[1726798775264,1.8708,2455.1,2455.0,0.40723]
[1726798775661,1.47,2455.2,2455.1,0.40721]
[1726798775867,1.47,2455.2,2454.9,0.4021]
[1726798776566,1.47,2455.2,2455.1,0.40721]
[1726798783275,1.8919,2455.2,2454.8,0.4047]
[1726798783475,0.4219,2455.2,2455.1,0.40721]
[1726798783672,1.8919,2455.2,2455.0,0.40721]
[1726798783869,1.8919,2455.2,2455.1,0.40721]
[1726798786270,0.40721,2455.1,2454.8,0.40725]
[1726798786570,1.47,2454.9,2454.8,0.40725]
[1726798786964,2.2901,2454.9,2454.8,0.40725]
[1726798790071,0.8201,2454.9,2454.8,0.40725]
[1726798793782,0.8201,2454.9,2454.7,0.4235]
[1726798794474,0.8201,2454.9,2454.8,0.40725]
[1726798794975,0.4004,2454.9,2454.8,0.40725]
[1726798796481,1.47,2455.0,2454.8,0.40725]
[1726798796671,1.47,2455.0,2454.7,0.4235]
[1726798796876,2.28991,2455.1,2454.8,0.40725]
[1726798797076,1.8827,2455.1,2454.9,0.40724]
[1726798797377,1.8827,2455.1,2454.7,0.4235]
[1726798797679,1.8827,2455.1,2455.0,0.40723]
[1726798797888,1.8827,2455.1,2454.9,0.40723]
[1726798798278,1.47,2455.0,2454.8,0.40724]
[1726798798680,1.47,2455.0,2454.8,0.40726]
[1726798800778,1.47,2455.0,2454.7,0.83077]
[1726798800982,3.6154,2454.9,2454.7,0.83077]
[1726798801188,0.4034,2454.8,2454.7,0.83077]
[1726798801982,0.40727,2454.7,2454.6,1.0648314]
[1726798802182,0.40727,2454.7,2454.4,1.8626514]
[1726798802183,0.40729,2454.6,2454.4,1.8626514]
[1726798802493,0.40731,2454.5,2454.4,1.0648314]
[1726798802687,5.4914,2454.6,2454.4,0.40732]
[1726798803190,0.40731,2454.5,2454.3,1.8626614]
[1726798803496,0.3933,2454.4,2454.3,1.8626614]
[1726798803787,0.40734,2454.3,2454.2,1.0648314]
[1726798803999,8.1094,2454.3,2454.0,1.0648314]
[1726798804287,5.017,2454.2,2453.6,2.4066471]
[1726798804483,1.47,2453.7,2453.5,1.0648314]
[1726798804797,1.47,2453.7,2453.4,1.0648314]
[1726798804798,0.8036,2453.6,2453.4,1.0648314]
[1726798804983,1.47,2453.5,2453.4,1.4723214]
[1726798805286,1.47,2453.5,2453.4,0.40749]
[1726798806190,2.2736,2453.6,2453.5,0.40747]
[1726798806584,2.2736,2453.6,2453.4,0.40748]
[1726798808287,2.68106,2453.6,2453.3,0.8004]
[1726798809585,2.2736,2453.6,2453.4,0.40749]
[1726798810186,0.8036,2453.6,2453.3,1.8629]
[1726798810388,0.80983,2453.8,2453.5,0.40747]
[1726798810593,0.7958,2453.8,2453.6,0.40746]
[1726798810789,1.20322,2453.8,2453.5,0.40747]
[1726798812587,3.5761,2453.7,2453.0,0.7972]
[1726798812789,0.40749,2453.5,2453.2,0.40752]
[1726798812990,0.40749,2453.5,2453.0,0.7972]
[1726798812991,3.18,2453.5,2453.0,0.7972]
[1726798813191,0.40753,2453.2,2453.0,0.3961]
[1726798813392,0.7822,2453.1,2453.0,0.3961]
[1726798813691,0.7822,2453.1,2453.0,0.80366]
[1726798814999,0.7822,2453.1,2452.9,0.40757]
[1726798815492,3.9622,2453.1,2452.6,0.8002]
[1726798815683,4.36975,2453.1,2452.6,0.8002]
[1726798815883,3.9622,2453.1,2452.6,0.8002]
[1726798816090,0.40756,2453.0,2452.8,0.40759]
[1726798816493,0.80516,2453.0,2452.8,0.40759]
[1726798817293,0.3976,2453.0,2452.8,0.40759]
[1726798817793,0.80516,2453.0,2452.7,0.4076]
[1726798819801,0.3976,2453.0,2452.8,0.40759]
[1726798820313,0.3976,2453.0,2452.9,0.40757]
[1726798820509,3.99,2453.1,2453.0,0.40756]
[1726798820713,3.6039,2453.1,2453.0,0.40756]
[1726798822117,6.7839,2453.1,2452.9,0.40757]
[1726798822415,6.7839,2453.1,2453.0,0.40756]
[1726798822618,3.6039,2453.1,2453.0,0.40756]
[1726798823101,3.2078,2453.1,2453.0,0.40756]
[1726798823304,0.40752,2453.3,2453.1,0.40754]
[1726798823700,0.40752,2453.3,2453.2,0.4091]
[1726798824114,4.48352,2453.3,2453.2,0.4091]
[1726798824414,4.076,2453.3,2453.2,0.4091]
[1726798824609,4.48351,2453.3,2453.2,0.4091]
[1726798825407,4.48351,2453.3,2453.0,0.40755]
[1726798825615,3.58751,2453.3,2453.0,0.40755]
[1726798826326,0.40753,2453.2,2452.9,0.81666]
[1726798826717,0.40754,2453.1,2452.9,0.81666]
[1726798827425,0.40753,2453.2,2452.9,0.81666]
[1726798827627,0.40754,2453.1,2452.9,0.81666]
[1726798828721,3.58754,2453.1,2452.9,0.81667]
[1726798828933,3.18,2453.1,2452.9,0.81667]
[1726798829921,0.3951,2453.0,2452.9,0.81667]
[1726798832320,0.7952,2453.0,2452.9,0.81667]
[1726798833729,0.40753,2453.2,2452.9,0.81666]
[1726798833932,1.87754,2453.1,2453.0,0.415]
[1726798834221,1.87754,2453.1,2452.9,0.81667]
[1726798834622,1.47,2453.0,2452.9,0.81667]
[1726798835229,1.87756,2453.0,2452.9,0.4091]
[1726798835421,1.47,2453.0,2452.6,0.40761]
[1726798835618,0.40762,2452.6,2452.5,0.781]
[1726798835917,1.87762,2452.6,2452.5,0.3962]
[1726798836726,1.87762,2452.6,2452.3,0.40767]
[1726798836727,1.47,2452.6,2452.3,0.40767]
[1726798836923,1.47,2452.4,2452.3,0.40767]
[1726798837117,1.47,2452.5,2452.4,0.40766]
[1726798837426,1.47,2452.7,2452.5,0.3962]
[1726798837827,1.87762,2452.7,2452.5,0.3962]
[1726798838028,5.67257533,2452.9,2452.6,0.40762]
[1726798838029,8.40158,2452.9,2452.6,0.40762]
[1726798838216,0.4076,2452.8,2452.6,0.416]
[1726798838420,0.4076,2452.8,2452.6,0.82362]
[1726798838622,11.16018,2452.9,2452.6,0.82362]
[1726798839025,0.40759,2452.8,2452.6,0.82362]
[1726798839231,0.40759,2452.8,2452.5,0.3962]
[1726798839232,0.40761,2452.7,2452.5,0.3962]
[1726798839926,0.40761,2452.7,2452.5,0.80384]
[1726798840119,0.4076,2452.8,2452.5,0.80384]
[1726798840320,7.61818,2452.9,2452.6,0.40762]
[1726798840929,0.40759,2452.8,2452.5,0.80383]
[1726798841433,7.2106,2452.9,2452.5,0.3962]
[1726798841735,3.2078,2452.9,2452.8,0.40759]
[1726798842333,8.09413,2453.2,2452.6,4.22687]
[1726798842334,0.3856,2453.2,2452.6,4.22687]
[1726798842632,0.3856,2453.2,2453.1,0.40754]
[1726798843031,0.3856,2453.2,2452.6,3.2078]
[1726798843727,0.3856,2453.2,2453.0,0.40755]
[1726798843935,0.3856,2453.2,2453.1,0.394]
[1726798844327,0.79312,2453.2,2453.1,0.394]
[1726798844534,1.20822,2453.2,2453.1,0.394]
[1726798844733,1.20822,2453.2,2452.9,0.40757]
[1726798845033,0.79765,2453.1,2452.8,0.40758]
[1726798845432,3.18,2453.0,2452.7,0.394]
[1726798845831,3.58756,2453.0,2452.7,0.394]
[1726798846027,3.18,2453.0,2452.7,0.8016]
[1726798846226,3.18,2453.0,2452.7,0.394]
[1726798846533,3.58757,2453.0,2452.7,0.8016]
[1726798847438,3.18,2453.0,2452.7,0.394]
[1726798847638,3.58756,2453.0,2452.7,0.8016]
[1726798848235,0.39,2452.9,2452.7,0.8016]
[1726798848427,0.4081,2452.8,2452.7,0.8016]
[1726798848839,0.4081,2452.8,2452.7,0.394]
[1726798849144,0.4081,2452.8,2452.4,0.416]
[1726798849339,0.81569,2452.8,2452.5,0.4225]
[1726798849844,0.81569,2452.8,2452.5,0.83013]
[1726798850841,0.81569,2452.8,2452.6,0.40762]
[1726798850842,0.4081,2452.8,2452.6,0.40762]
[1726798851031,0.81569,2452.8,2452.6,0.40762]
[1726798851847,7.18545,2453.1,2452.5,0.4225]
[1726798852137,3.94955,2453.1,2452.8,0.40758]
[1726798852337,1.24073,2453.2,2452.9,1.25437]
[1726798852540,0.40754,2453.1,2452.9,0.8468]
[1726798852734,1.24073,2453.2,2452.9,1.25437]
[1726798853443,0.40754,2453.1,2452.9,0.8468]
[1726798854041,1.24074,2453.2,2452.9,0.8468]
[1726798854341,1.24074,2453.2,2452.9,1.25437]
[1726798855542,0.40754,2453.1,2452.9,1.25437]
[1726798856039,1.24073,2453.2,2452.9,1.25437]
[1726798856234,6.3878,2453.1,2452.5,1.0648314]
[1726798856440,0.4076,2452.8,2452.6,0.412]
[1726798856638,0.402,2452.7,2452.6,0.412]
[1726798856940,0.402,2452.7,2452.6,0.81962]
[1726798857343,0.80961,2452.7,2452.6,0.412]
[1726798857533,0.402,2452.7,2452.6,0.412]
[1726798858648,0.402,2452.7,2452.3,4.2726314]
[1726798858842,0.40763,2452.6,2452.4,0.412]
[1726798859745,3.98962,2452.7,2452.4,0.81965]
[1726798860048,3.582,2452.7,2452.4,0.412]
[1726798860643,0.40763,2452.6,2452.4,0.412]
[1726798860946,3.582,2452.7,2452.4,0.412]
[1726798861140,0.40764,2452.5,2452.4,0.412]
[1726798862048,0.40764,2452.6,2452.4,0.412]
[1726798862239,3.58764,2452.5,2452.4,0.412]
[1726798862440,0.40767,2452.4,2452.2,0.4021]
[1726798862642,0.4033,2452.3,2452.1,0.8259]
[1726798863945,0.81098,2452.3,2452.1,0.4182]
[1726798864146,0.81098,2452.3,2451.8,1.0648314]
[1726798864147,11.1979,2452.3,2451.8,1.0648314]
[1726798864341,3.58772,2452.1,2451.9,0.4182]